bitfinex/quotes_SOLUSD_20251207
["timestamp","ask_amount","ask_price","bid_price","bid_amount"]
[1765144106397,8.32,133.6,133.59,0.1]
[1765144106589,15.80502994,133.6,133.59,0.1]
[1765144106788,32.11389394,133.6,133.59,0.1]
[1765144108196,41.93722962,133.6,133.59,0.1]
[1765144109774,42.45722962,133.6,133.59,0.1]
[1765144110897,32.11389394,133.6,133.59,0.1]
[1765144111314,24.628864,133.6,133.59,0.1]
[1765144112001,8.32,133.6,133.59,0.76]
[1765144112302,8.32,133.6,133.59,0.1]
[1765144112480,8.32,133.6,133.59,0.76]
[1765144113801,8.32,133.6,133.59,0.1]
[1765144114203,15.80502994,133.6,133.59,0.1]
[1765144114902,16.32502994,133.6,133.59,0.1]
[1765144115228,15.80502994,133.6,133.59,0.1]
[1765144115998,16.30502994,133.6,133.59,0.1]
[1765144118501,26.64836562,133.6,133.59,0.1]
[1765144119303,42.95722962,133.6,133.59,0.1]
[1765144120800,26.14836562,133.6,133.59,0.1]
[1765144121005,25.62836562,133.6,133.59,0.1]
[1765144121208,41.93722962,133.6,133.59,0.1]
[1765144122697,42.45722962,133.6,133.59,0.1]
[1765144122900,42.45722962,133.6,133.46,0.99999999]
[1765144122901,35.9717013,133.6,133.49,0.66]
[1765144123087,9.82333568,133.54,133.47,9.82333568]
[1765144123288,26.13219968,133.57,133.52,7.48909295]
[1765144123586,16.308864,133.59,133.53,17.31227598]
[1765144123911,8.32,133.58,133.53,17.31227598]
[1765144124107,8.32,133.58,133.54,0.66]
[1765144124289,16.308864,133.55,133.39,3.91132666]
[1765144124605,16.308864,133.47,133.45,4.18980864]
[1765144124928,8.34,133.46,133.45,3.52980864]
[1765144125584,16.308864,133.47,133.45,4.18980864]
[1765144125914,9.82333568,133.49,133.45,3.52980864]
[1765144126091,8.34,133.48,133.45,3.52980864]
[1765144126295,9.82333568,133.46,133.45,3.52980864]
[1765144126527,24.648864,133.47,133.46,0.66]
[1765144126528,26.13219968,133.47,133.46,0.66]
[1765144126726,8.34,133.47,133.46,0.66]
[1765144127526,16.308864,133.49,133.46,0.66]
[1765144127727,26.13219968,133.47,133.45,3.52980864]
[1765144128027,8.01131066,133.49,133.46,0.66]
[1765144128028,17.31464634,133.49,133.46,0.66]
[1765144128219,9.82333568,133.47,133.46,0.66]
[1765144128521,8.34,133.48,133.46,0.66]
[1765144129026,8.34,133.47,133.46,0.66]
[1765144129526,25.65570269,133.47,133.45,3.52980864]
[1765144129729,9.82333568,133.46,133.45,3.52980864]
[1765144131024,8.34,133.46,133.45,4.23980864]
[1765144131328,17.31463198,133.49,133.45,4.23980864]
[1765144131503,17.31463198,133.49,133.46,0.71]
[1765144131504,8.34,133.48,133.46,0.71]
[1765144131700,18.16333568,133.48,133.46,0.71]
[1765144131921,8.34,133.48,133.46,0.71]
[1765144132125,9.82333568,133.5,133.46,0.71]
[1765144132314,18.16333568,133.49,133.46,0.71]
[1765144132529,9.82333568,133.47,133.45,3.52980864]
[1765144132737,14.71647534,133.46,133.45,3.52980864]
[1765144132907,8.34,133.46,133.45,3.52980864]
[1765144133431,15.83288176,133.46,133.45,3.52980864]
[1765144134025,22.2093571,133.46,133.45,3.52980864]
[1765144134227,6.37647534,133.46,133.45,4.23980864]
[1765144134538,8.36,133.46,133.45,4.23980864]
[1765144134706,8.36,133.46,133.45,3.52980864]
[1765144134908,22.7493571,133.46,133.45,3.52980864]
[1765144135331,22.2293571,133.46,133.45,3.52980864]
[1765144136622,22.7493571,133.46,133.45,3.52980864]
[1765144138329,22.2293571,133.46,133.45,3.52980864]
[1765144138637,22.7493571,133.46,133.45,1e-08]
[1765144138836,30.22613287,133.46,133.45,1e-08]
[1765144139039,14.3893571,133.46,133.45,1e-08]
[1765144139548,30.6982211,133.46,133.45,1e-08]
[1765144139749,39.0382211,133.46,133.45,1e-08]
[1765144140517,38.5382211,133.46,133.45,1e-08]
[1765144141040,39.0582211,133.46,133.45,1e-08]
[1765144142439,30.6982211,133.46,133.45,1e-08]
[1765144142643,38.5182211,133.46,133.45,1e-08]
[1765144142941,39.0382211,133.46,133.45,1e-08]
[1765144143327,13.86860574,133.48,133.45,1e-08]
[1765144143660,6.37647534,133.49,133.45,0.69000001]
[1765144143832,8.36,133.48,133.45,7.06647535]
[1765144144160,8.36,133.48,133.46,8.18252508]
[1765144144632,8.36,133.48,133.47,0.69]
[1765144145753,13.865797,133.53,133.47,7.06647534]
[1765144145927,6.37647534,133.56,133.49,6.37647534]
[1765144146126,8.36,133.55,133.49,6.37647534]
[1765144146333,8.36,133.55,133.45,1e-08]
[1765144146334,6.37647534,133.57,133.51,6.37647534]
[1765144146530,8.36,133.56,133.51,6.37647534]
[1765144146741,8.36,133.56,133.52,7.06647534]
[1765144147248,6.37647534,133.59,133.53,7.06647534]
[1765144147571,17.98,133.61,133.54,6.37647534]
[1765144147572,8.36,133.58,133.54,6.37647534]
[1765144147722,8.36,133.57,133.55,6.37647534]
[1765144147923,18.5,133.67,133.56,6.37647534]
[1765144148145,18.5,133.67,133.61,6.37647534]
[1765144148146,8.36,133.66,133.61,6.37647534]
[1765144148355,6.37647534,133.64,133.57,7.06647534]
[1765144148535,8.36,133.63,133.57,7.06647534]
[1765144148739,6.37647534,133.6,133.56,0.69]
[1765144148942,8.36,133.59,133.56,14.55342765]
[1765144149348,8.36,133.59,133.57,0.69]
[1765144149936,30.66974821,133.62,133.57,0.69]
[1765144150136,8.36,133.61,133.57,0.69]
[1765144150342,30.66974821,133.62,133.57,0.69]
[1765144150542,8.36,133.61,133.57,0.69]
[1765144150744,6.37647534,133.6,133.55,0.69]
[1765144151141,6.37647534,133.59,133.55,0.69]
[1765144151342,8.36,133.58,133.55,0.69]
[1765144152496,8.36,133.58,133.46,37.46203638]
[1765144152497,16.308864,133.54,133.47,18.73054512]
[1765144152816,6.37647534,133.51,133.46,0.69]
[1765144152934,8.36,133.5,133.47,0.69]
[1765144153330,8.36,133.5,133.47,7.06647534]
[1765144153760,8.36,133.5,133.48,0.69]
[1765144154330,15.85088288,133.5,133.42,18.73746866]
[1765144154534,22.22735822,133.5,133.46,0.69]
[1765144154755,6.37647534,133.49,133.46,0.69]
[1765144154965,22.22735822,133.5,133.46,0.69]
[1765144155259,13.86735822,133.5,133.46,0.69]
[1765144155565,8.36,133.49,133.46,0.69]
[1765144155735,13.86661946,133.51,133.46,8.18282586]
[1765144155736,8.36,133.48,133.46,8.18282586]
[1765144156362,6.37647534,133.53,133.47,8.18226644]
[1765144156553,8.36,133.52,133.47,8.18226644]
[1765144156737,8.36,133.51,133.48,0.69]
[1765144157584,16.308864,133.54,133.48,0.69]
[1765144157731,8.38,133.55,133.53,6.37647534]
[1765144158056,8.38,133.55,133.48,0.69]
[1765144158057,8.38,133.54,133.48,0.69]
[1765144158250,8.38,133.54,133.5,7.4906367]
[1765144158664,8.38,133.54,133.47,27.54074584]
[1765144158665,14.38505588,133.54,133.48,0.69]
[1765144158840,14.75647534,133.53,133.48,0.69]
[1765144159189,6.37647534,133.52,133.48,0.69]
[1765144159468,6.37647534,133.52,133.46,6.37647534]
[1765144159469,6.37647534,133.5,133.46,0.69]
[1765144159670,8.38,133.49,133.46,0.69]
[1765144159869,8.38,133.49,133.46,8.18275879]
[1765144160281,8.38,133.49,133.47,0.69]
[1765144161162,8.38,133.49,133.46,7.49275879]
[1765144161163,8.38,133.49,133.45,14.5698008]
[1765144161554,0.52,133.48,133.45,1e-08]
[1765144161753,6.37647534,133.46,133.45,1e-08]
[1765144162381,13.8693571,133.46,133.45,1e-08]
[1765144163582,22.2493571,133.46,133.45,1e-08]
[1765144163769,22.7693571,133.46,133.45,1e-08]
[1765144163969,39.0782211,133.46,133.45,1e-08]
[1765144164796,22.7693571,133.46,133.45,1e-08]
[1765144165109,23.76935709,133.46,133.45,1e-08]
[1765144165781,32.57930201,133.46,133.45,1e-08]
[1765144165985,6.37647534,133.39,133.34,7.07647534]
[1765144166189,6.37647534,133.39,133.35,0.7]
[1765144166190,8.38,133.38,133.35,0.7]
[1765144167087,6.37647534,133.37,133.32,7.07647534]
[1765144167291,6.37647534,133.37,133.33,0.7]
[1765144167496,6.37647534,133.36,133.33,0.7]
[1765144167696,8.38,133.35,133.33,0.7]
[1765144168180,14.75647534,133.35,133.3,7.50186801]
[1765144168500,14.75647534,133.35,133.32,0.7]
[1765144168702,22.25571697,133.35,133.32,0.7]
[1765144168899,0.52,133.42,133.34,6.37647534]
[1765144169097,8.38,133.41,133.36,6.37647534]
[1765144169305,6.37647534,133.4,133.35,6.37647534]
[1765144169598,14.75647534,133.41,133.34,0.7]
[1765144169804,14.75647534,133.41,133.36,6.37647534]
[1765144169998,6.37647534,133.41,133.36,6.37647534]
[1765144170198,9.08,133.4,133.36,0.7]
[1765144170374,16.57627989,133.4,133.36,0.7]
[1765144170574,15.87627989,133.4,133.36,0.7]
[1765144170786,8.38,133.4,133.36,14.57467306]
[1765144171103,8.38,133.39,133.37,6.37647534]
[1765144171279,8.38,133.39,133.37,7.07647534]
[1765144171481,8.38,133.39,133.36,13.87467306]
[1765144171692,8.38,133.39,133.37,0.7]
[1765144172298,8.38,133.39,133.36,7.49819772]
[1765144172502,8.38,133.39,133.36,8.19819772]
[1765144172876,18.73767393,133.43,133.37,7.07647534]
[1765144172877,7.49456643,133.43,133.37,7.07647534]
[1765144173082,8.38,133.42,133.38,6.37647534]
[1765144173384,8.38,133.42,133.38,7.07647534]
[1765144173593,8.38,133.42,133.35,0.7]
[1765144173594,6.37647534,133.39,133.35,0.7]
[1765144173789,8.38,133.38,133.35,0.7]
[1765144173985,8.38,133.38,133.35,7.07647534]
[1765144174189,8.38,133.38,133.36,6.37647534]
[1765144174385,7.07647534,133.41,133.36,7.07647534]
[1765144174591,15.87640604,133.4,133.36,6.37647534]
[1765144174904,8.38,133.4,133.37,0.7]
[1765144175281,14.5723224,133.41,133.37,0.7]
[1765144175578,8.38,133.4,133.37,0.7]
[1765144175780,18.73641609,133.43,133.37,7.07647534]
[1765144175781,13.87122509,133.43,133.37,7.07647534]
[1765144176094,14.75647534,133.42,133.37,7.07647534]
[1765144176407,9.08,133.42,133.36,0.7]
[1765144176699,14.57263861,133.41,133.36,8.19841127]
[1765144177220,8.19616327,133.41,133.36,7.49841127]
[1765144177507,30.18065007,133.42,133.37,7.07647534]
[1765144177808,37.46592094,133.46,133.41,6.37647534]
[1765144177809,6.37647534,133.46,133.41,6.37647534]
[1765144178039,8.38,133.45,133.43,6.37647534]
[1765144178188,6.37647534,133.5,133.44,6.37647534]
[1765144178379,8.38,133.49,133.46,6.37647534]
[1765144178584,8.38,133.49,133.48,6.37647534]
[1765144179015,8.38,133.49,133.48,7.07647534]
[1765144180598,8.38,133.49,133.48,14.5682344]
[1765144181019,8.38,133.49,133.48,7.07647534]
[1765144181811,8.38,133.49,133.48,14.5682344]
[1765144185297,8.38,133.52,133.48,33.29763206]
[1765144185501,8.38,133.52,133.51,6.37647534]
[1765144185930,8.38,133.52,133.51,7.07647534]
[1765144187042,8.38,133.52,133.51,14.56655098]
[1765144188129,8.36,133.54,133.51,14.56655098]
[1765144188328,8.36,133.54,133.53,6.37647534]
[1765144188842,8.36,133.54,133.53,7.07647534]
[1765144189045,8.36,133.57,133.53,7.07647534]
[1765144189273,8.36,133.57,133.56,6.37647534]
[1765144189545,8.36,133.57,133.55,6.37647534]
[1765144189851,8.36,133.57,133.55,7.07647534]
[1765144190143,8.36,133.57,133.56,7.07647534]
[1765144191155,8.36,133.57,133.56,14.56374697]
[1765144191516,8.36,133.58,133.56,14.56374697]
[1765144191722,8.36,133.58,133.57,6.37647534]
[1765144191936,8.36,133.58,133.57,7.07647534]
[1765144192512,14.53050255,133.62,133.57,7.07647534]
[1765144192718,9.03,133.61,133.57,7.07647534]
[1765144192940,9.03,133.61,133.57,14.56308922]
[1765144194115,9.03,133.61,133.58,6.37647534]
[1765144194546,8.36,133.6,133.58,7.07647534]
[1765144194847,8.36,133.6,133.58,10.54275033]
[1765144195051,0.2,133.63,133.59,10.54275033]
[1765144195215,0.2,133.63,133.61,9.84275033]
[1765144195542,8.56,133.63,133.61,9.84275033]
[1765144195746,8.56,133.63,133.6,9.84275033]
[1765144196237,8.56,133.63,133.6,10.54275033]
[1765144196538,0.67,133.62,133.57,17.32929407]
[1765144196740,10.51275033,133.62,133.57,9.84275033]
[1765144196929,7.48446972,133.61,133.57,10.54275033]
[1765144197122,7.48446972,133.61,133.57,17.32910134]
[1765144197443,7.48398025,133.62,133.58,10.54275033]
[1765144198341,7.48398025,133.62,133.59,0.7]
[1765144199844,0.67,133.61,133.57,9.84275033]
[1765144200025,0.67,133.61,133.56,10.54275033]
[1765144200621,9.84275033,133.6,133.56,0.7]
[1765144200823,8.36,133.59,133.56,0.7]
[1765144201044,8.36,133.59,133.56,8.18708806]
[1765144201341,15.84570621,133.59,133.56,0.7]
[1765144201515,15.84570621,133.59,133.57,10.51275033]
[1765144201516,8.36,133.59,133.57,10.51275033]
[1765144201720,9.84275033,133.62,133.57,10.51275033]
[1765144201721,0.2,133.63,133.58,9.84275033]
[1765144201921,0.2,133.63,133.6,9.84275033]
[1765144202121,8.36,133.62,133.6,9.84275033]
[1765144202321,8.36,133.62,133.6,10.51275033]
[1765144202545,8.36,133.62,133.61,10.51275033]
[1765144203055,8.36,133.62,133.61,17.99722005]
[1765144204626,0.2,133.63,133.61,17.99722005]
[1765144204934,0.2,133.63,133.62,0.67]
[1765144205253,0.2,133.63,133.61,17.99722005]
[1765144205462,0.2,133.63,133.62,0.67]
[1765144206024,0.2,133.63,133.62,8.15390959]
[1765144206330,0.2,133.63,133.62,17.99665992]
[1765144208436,0.2,133.63,133.62,10.51275033]
[1765144208742,0.2,133.63,133.61,17.32706605]
[1765144208951,0.2,133.63,133.62,0.67]
[1765144209756,0.2,133.63,133.6,17.9976432]
[1765144209955,0.2,133.63,133.6,17.3276432]
[1765144210132,0.2,133.63,133.61,0.67]
[1765144211360,0.2,133.63,133.61,8.15442925]
[1765144213355,0.2,133.63,133.62,10.51275033]
[1765144215150,8.34,133.67,133.65,9.84275033]
[1765144215348,8.34,133.67,133.66,17.32442023]
[1765144215666,8.34,133.67,133.66,17.99442023]
[1765144216661,0.2,133.71,133.66,36.698595]
[1765144216840,8.34,133.7,133.69,9.84275033]
[1765144217161,18.18275033,133.7,133.64,9.84275033]
[1765144217460,9.84275033,133.68,133.64,7.48270486]
[1765144217664,9.84275033,133.68,133.63,17.32588867]
[1765144217834,0.66,133.67,133.63,17.32588867]
[1765144218031,8.34,133.66,133.63,17.32588867]
[1765144218759,9.0,133.66,133.63,17.32588867]
[1765144219148,9.0,133.66,133.64,7.48271129]
[1765144219568,0.66,133.7,133.65,10.51275033]
[1765144219769,8.34,133.69,133.67,9.84275033]
[1765144219947,8.34,133.69,133.66,9.84275033]
[1765144220152,9.0,133.69,133.65,10.51275033]
[1765144220469,8.34,133.69,133.65,9.84275033]
[1765144220672,0.66,133.68,133.65,9.84275033]
[1765144221553,0.66,133.68,133.65,17.32460168]
[1765144222568,0.66,133.68,133.64,18.70697395]
[1765144222569,0.66,133.68,133.64,7.48257304]
[1765144222743,8.14058703,133.68,133.64,17.32532337]
[1765144222957,8.14058703,133.68,133.65,7.48222151]
[1765144223159,0.66,133.68,133.65,17.32497184]
[1765144223358,8.34,133.69,133.66,9.84275033]
[1765144223565,9.0,133.69,133.66,17.32415062]
[1765144223942,8.34,133.68,133.67,10.52275033]
[1765144224252,8.34,133.68,133.65,17.3247549]
[1765144224865,8.34,133.68,133.65,18.0047549]
[1765144225169,8.34,133.68,133.66,7.48161322]
[1765144225866,8.34,133.68,133.66,17.32436355]
[1765144226066,8.34,133.68,133.66,18.00436355]
[1765144226261,8.34,133.68,133.67,10.52275033]
[1765144226670,8.34,133.68,133.67,9.84275033]
[1765144227065,9.0,133.68,133.66,17.32436355]
[1765144227264,9.0,133.68,133.66,7.48161322]
[1765144227481,9.0,133.68,133.65,7.48204256]
[1765144227912,0.66,133.67,133.64,17.32530616]
[1765144228452,10.50275033,133.67,133.64,7.48255583]
[1765144228758,9.84275033,133.66,133.62,7.48354819]
[1765144228977,0.66,133.66,133.62,18.00629852]
[1765144229169,0.66,133.66,133.63,17.32591765]
[1765144229854,0.66,133.66,133.64,17.32552512]
[1765144229855,8.34,133.65,133.64,17.32552512]
[1765144230056,8.34,133.65,133.61,0.68]
[1765144230270,8.34,133.65,133.62,10.52275033]
[1765144230480,0.66,133.64,133.6,28.5549645]
[1765144230780,0.66,133.64,133.61,7.48426695]
[1765144230963,10.50275033,133.64,133.6,7.48499552]
[1765144231170,9.84275033,133.62,133.57,10.52275033]
[1765144231485,18.18275033,133.61,133.57,7.48670544]
[1765144231886,0.66,133.6,133.57,7.48670544]
[1765144232062,0.66,133.6,133.56,9.84275033]
[1765144232063,17.98805534,133.6,133.55,9.84275033]
[1765144232260,36.70063019,133.6,133.55,17.33055372]
[1765144232484,0.66,133.59,133.55,7.48780339]
[1765144232686,0.66,133.59,133.55,17.33055372]
[1765144233388,8.34,133.58,133.54,7.4883078]
[1765144233594,8.34,133.58,133.54,17.33105813]
[1765144233778,0.66,133.57,133.54,17.33105813]
[1765144233981,8.34,133.58,133.56,17.33002196]
[1765144234510,8.34,133.58,133.55,7.48764506]
[1765144234511,9.0,133.58,133.55,7.48764506]
[1765144234798,8.34,133.58,133.55,7.48764506]
[1765144235098,8.34,133.58,133.55,17.33039539]
[1765144235427,9.0,133.58,133.55,17.33039539]
[1765144235765,8.34,133.58,133.55,17.33039539]
[1765144235988,9.0,133.58,133.56,9.84275033]
[1765144236190,8.34,133.58,133.56,9.84275033]
[1765144236398,9.0,133.58,133.55,17.33039539]
[1765144237098,0.66,133.58,133.55,17.33039539]
[1765144237396,9.0,133.57,133.54,9.84275033]
[1765144237695,16.48684121,133.57,133.53,17.33129682]
[1765144237997,0.66,133.56,133.53,7.48854649]
[1765144238695,10.50275033,133.56,133.51,9.84275033]
[1765144238895,10.50275033,133.56,133.51,17.3324635]
[1765144239083,0.66,133.55,133.51,17.3324635]
[1765144239276,8.34,133.54,133.52,9.84275033]
[1765144239477,17.32891668,133.58,133.53,17.33170412]
[1765144239689,0.66,133.6,133.55,9.84275033]
[1765144239877,8.34,133.59,133.56,9.84275033]
[1765144240591,9.0,133.59,133.55,9.84275033]
[1765144241682,8.34,133.59,133.55,7.48745132]
[1765144241892,9.84275033,133.57,133.52,9.84275033]
[1765144242101,18.18275033,133.56,133.51,17.33237668]
[1765144242298,9.84275033,133.55,133.5,17.33323167]
[1765144242485,10.50275033,133.55,133.5,17.33323167]
[1765144242688,0.66,133.54,133.5,17.33323167]
[1765144242934,8.34,133.53,133.49,18.01376466]
[1765144243285,9.0,133.53,133.49,18.01376466]
[1765144244014,0.66,133.59,133.52,9.84275033]
[1765144244308,8.34,133.56,133.52,9.84275033]
[1765144244512,8.34,133.55,133.52,9.84275033]
[1765144245008,9.0,133.55,133.52,9.84275033]
[1765144245419,0.66,133.54,133.5,17.33316546]
[1765144245710,0.66,133.54,133.5,7.49041513]
[1765144245711,10.50275033,133.54,133.5,7.49041513]
[1765144245879,8.14841692,133.54,133.5,7.49041513]
[1765144246079,0.66,133.53,133.5,7.49041513]
[1765144247104,0.66,133.53,133.5,9.84275033]
[1765144247307,15.82804322,133.55,133.51,9.84275033]
[1765144247496,0.66,133.54,133.51,9.84275033]
[1765144248417,0.66,133.54,133.5,17.33309456]
[1765144249809,9.84275033,133.53,133.48,9.84275033]
[1765144250213,10.50275033,133.52,133.47,9.84275033]
[1765144250514,10.50275033,133.52,133.47,17.33471169]
[1765144250515,8.34,133.51,133.47,17.33471169]
[1765144250806,16.52008435,133.51,133.47,17.33471169]
[1765144250986,0.69,133.5,133.47,7.49196136]
[1765144251408,0.69,133.5,133.46,17.3354382]
[1765144251607,0.69,133.5,133.46,18.0254382]
[1765144251919,9.84275033,133.49,133.44,17.33670914]
[1765144252287,0.69,133.48,133.44,18.02670914]
[1765144252484,8.34,133.47,133.44,18.02670914]
[1765144252701,8.34,133.47,133.45,9.84275033]
[1765144253012,16.52236193,133.47,133.43,17.33711748]
[1765144253183,0.69,133.46,133.42,18.02751774]
[1765144253388,16.52236193,133.47,133.43,0.69]
[1765144254303,26.36511226,133.47,133.43,0.69]
[1765144254620,26.36511226,133.47,133.43,8.18445737]
[1765144254815,0.69,133.46,133.42,17.33785801]
[1765144255112,0.69,133.46,133.41,0.1]
[1765144255113,9.84275033,133.45,133.41,0.1]
[1765144255322,8.36,133.44,133.41,0.1]
[1765144255504,9.05,133.44,133.41,0.1]
[1765144256092,8.36,133.44,133.41,18.12842522]
[1765144256416,8.36,133.44,133.41,7.59567489]
[1765144256614,9.04,133.44,133.41,7.59567489]
[1765144256803,8.36,133.44,133.41,14.66273092]
[1765144257002,6.37705603,133.48,133.43,6.37705603]
[1765144257201,8.36,133.47,133.45,6.37705603]
[1765144257794,19.40254593,133.53,133.46,7.06705603]
[1765144258021,8.36,133.52,133.49,6.37705603]
[1765144258414,9.04,133.52,133.49,6.37705603]
[1765144258922,0.68,133.51,133.48,6.37705603]
[1765144260424,0.68,133.51,133.48,13.86880207]
[1765144261124,8.17025708,133.51,133.44,0.69]
[1765144261299,6.37705603,133.49,133.43,18.73566669]
[1765144261499,8.17025708,133.51,133.42,7.49512816]
[1765144261500,6.37705603,133.46,133.42,7.49512816]
[1765144261731,0.68,133.5,133.41,0.1]
[1765144261732,14.73705603,133.45,133.41,0.1]
[1765144261906,8.36,133.44,133.41,7.59562366]
[1765144262102,14.73705603,133.44,133.41,7.59562366]
[1765144262310,6.37705603,133.43,133.41,0.1]
[1765144262530,6.37705603,133.42,133.41,0.1]
[1765144262833,7.05705603,133.42,133.41,0.1]
[1765144263522,8.36,133.42,133.41,0.79]
[1765144264215,8.36,133.42,133.41,7.16705603]
[1765144264830,8.36,133.42,133.41,8.28568997]
[1765144265004,8.36,133.42,133.41,14.662746]
[1765144265342,8.36,133.48,133.41,33.40197094]
[1765144265523,7.05705603,133.47,133.42,0.69]
[1765144265907,0.68,133.46,133.42,0.69]
[1765144266537,7.05705603,133.46,133.41,7.59563614]
[1765144266734,7.49344323,133.45,133.41,8.28563614]
[1765144266906,8.36,133.44,133.41,8.28563614]
[1765144267506,8.36,133.44,133.41,13.97269217]
[1765144267736,8.36,133.44,133.41,14.66269217]
[1765144268111,8.36,133.44,133.42,0.69]
[1765144268814,8.36,133.44,133.42,8.18508188]
[1765144269440,8.36,133.44,133.42,0.69]
[1765144270427,7.49231044,133.48,133.43,6.37705603]
[1765144270618,8.36,133.47,133.44,6.37705603]
[1765144270832,8.36,133.47,133.44,13.87092744]
[1765144271026,8.36,133.47,133.45,0.69]
[1765144271739,16.53241177,133.47,133.43,0.69]
[1765144272323,15.85241177,133.47,133.43,0.69]
[1765144272644,16.53241177,133.47,133.43,0.69]
[1765144272824,15.85241177,133.47,133.43,7.06705603]
[1765144273130,15.85241177,133.47,133.43,0.69]
[1765144273530,0.68,133.49,133.44,7.06705603]
[1765144273734,8.36,133.48,133.45,6.37705603]
[1765144274034,8.36,133.48,133.45,7.06705603]
[1765144274429,8.36,133.48,133.46,6.37705603]
[1765144275147,8.36,133.48,133.44,6.37705603]
[1765144275148,0.68,133.47,133.44,6.37705603]
[1765144275643,0.68,133.47,133.43,13.87151289]
[1765144276020,0.68,133.47,133.43,14.56151289]
[1765144277148,15.85230534,133.48,133.44,14.56099912]
[1765144277531,16.53230534,133.48,133.44,14.56099912]
[1765144277728,8.36,133.48,133.45,7.06705603]
[1765144277932,9.04,133.48,133.45,6.37705603]
[1765144278651,8.36,133.48,133.46,6.37705603]
[1765144278859,9.04,133.48,133.45,6.37705603]
[1765144280062,15.85185086,133.48,133.45,6.37705603]
[1765144280270,0.68,133.47,133.42,6.37705603]
[1765144280553,0.68,133.47,133.41,25.21577229]
[1765144280940,6.37705603,133.45,133.41,0.1]
[1765144281148,8.36,133.44,133.41,0.1]
[1765144281657,0.66,133.43,133.41,0.1]
[1765144281859,7.03705603,133.43,133.41,0.1]
[1765144282030,6.37705603,133.42,133.41,0.1]
[1765144282239,7.03705603,133.42,133.41,0.1]
[1765144282861,8.36,133.42,133.41,0.1]
[1765144283234,53.76968655,133.48,133.41,7.17705603]
[1765144283235,8.15787853,133.48,133.41,7.17705603]
[1765144283541,8.15787853,133.48,133.43,7.49456643]
[1765144283542,16.51232037,133.47,133.43,7.49456643]
[1765144283945,8.15232037,133.47,133.43,7.49456643]
[1765144284142,8.36,133.46,133.43,7.49456643]
[1765144284473,9.02,133.46,133.42,7.4949669]
[1765144284629,9.02,133.46,133.42,8.1949669]
[1765144285124,0.66,133.45,133.41,13.97255797]
[1765144285434,8.36,133.44,133.41,13.97263293]
[1765144285830,8.36,133.44,133.42,0.7]
[1765144286554,8.36,133.44,133.41,7.59562901]
[1765144287459,15.85400666,133.44,133.41,0.1]
[1765144287751,0.66,133.43,133.41,0.1]
[1765144288532,8.36,133.44,133.41,0.1]
[1765144288740,15.85406127,133.44,133.41,0.1]
[1765144289045,16.51406127,133.44,133.41,0.1]
[1765144289863,8.36,133.43,133.42,0.7]
[1765144290028,8.36,133.43,133.41,6.47705603]
[1765144290230,8.36,133.43,133.41,7.17705603]
[1765144290941,7.49232037,133.47,133.42,7.07705603]
[1765144291144,8.36,133.46,133.43,6.37705603]
[1765144291365,8.36,133.45,133.44,6.37705603]
[1765144291658,8.36,133.46,133.45,7.49344323]
[1765144291828,8.36,133.46,133.45,14.57049926]
[1765144293638,8.36,133.46,133.45,8.19344323]
[1765144296743,8.36,133.46,133.42,7.07705603]
[1765144296950,8.36,133.46,133.42,0.7]
[1765144296951,9.02,133.46,133.42,0.7]
[1765144297567,15.85291745,133.46,133.41,32.71197094]
[1765144297735,0.66,133.48,133.43,6.37705603]
[1765144297940,0.66,133.49,133.43,6.37705603]
[1765144298157,8.34,133.48,133.43,6.37705603]
[1765144298357,8.34,133.48,133.44,0.7]
[1765144298663,8.34,133.48,133.45,7.49344323]
[1765144299049,0.66,133.47,133.44,7.49383094]